Cogmind - Beta 14 @@@ ROGUE MODE // 2024.08.11 @ 23:48:56 Player: Olafz Result: Self-destructed Performance ------------- Evolutions (4) 2000 Regions Visited (5) 1000 Robots Destroyed (0) 0 Value Destroyed (0) 0 Prototype IDs (0) 0 Alien Tech Used (0) 0 Bonus (1325) 1325 TOTAL SCORE: 4325 Bonus ------- Pacifist 1325 Cogmind --------- Core Integrity 773/850 Matter 287/300 Energy 99/100 System Corruption 0% Temperature Cool (0) Movement Core (50) Location -6/Factory Parts ------- > --- POWER (1) -------- (None) > --- PROPULSION (4) --- (None) > --- UTILITY (8) ------ Advanced Signal Interpreter Advanced Signal Interpreter > --- WEAPON (2) ------- (None) > --- INVENTORY (5) ---- Micro Nuclear Core Advanced Signal Interpreter Advanced ECM Suite Greatsword Peak State ------------ > --- POWER ------------ (None) > --- PROPULSION ------- (None) > --- UTILITY ---------- Advanced Signal Interpreter Advanced Signal Interpreter > --- WEAPON ----------- (None) > --- INVENTORY -------- Micro Nuclear Core Advanced Signal Interpreter Advanced ECM Suite Greatsword [Rating: 12] Favorites ----------- Power None Propulsion None Utility Advanced Signal Interpreter Processor Advanced Signal Interpreter Weapon None Build | -11 -10 -9 -8 -7 -6 ------- Run | Yrd Mat Mat Mat Fac Fac Slots Evolved 8 | . . 2 2 2 2 Power . | . . . . . . Propulsion 2 | . . . 1 1 . Utility 6 | . . 2 1 1 2 Weapon . | . . . . . . Parts Attached 2 | . . . . . 2 Power . | . . . . . . Engine . | . . . . . . Core . | . . . . . . Reactor . | . . . . . . Propulsion . | . . . . . . Treads . | . . . . . . Leg . | . . . . . . Wheel . | . . . . . . Hover . | . . . . . . Flight . | . . . . . . Utility 2 | . . . . . 2 Device . | . . . . . . Storage . | . . . . . . Processor 2 | . . . . . 2 Hackware . | . . . . . . Protection . | . . . . . . Artifact . | . . . . . . Weapon . | . . . . . . Energy Gun . | . . . . . . Energy Cannon . | . . . . . . Ballistic Gun . | . . . . . . Ballistic Cannon . | . . . . . . Launcher . | . . . . . . Special Weapon . | . . . . . . Impact Weapon . | . . . . . . Slashing Weapon . | . . . . . . Piercing Weapon . | . . . . . . Special Melee Weapon . | . . . . . . Unidentified Prototypes . | . . . . . . Parts Lost . | . . . . . . Power . | . . . . . . Propulsion . | . . . . . . Utility . | . . . . . . Weapon . | . . . . . . Highest Loss Streak . | . . . . . . To Critical Strikes . | . . . . . . Average Slot Usage (%) 1 | . . . . . 4 Processor 1 | . . . . . 4 Peak Build Rating 12 | . . . . . 12 Average Rating 1 | . . . . . 4 On Entrance . | . . . . . . Naked Turns 379 | . 35 59 66 138 81 Heaviest Build . | . . . . . . Greatest Support 3 | 3 3 3 3 3 3 Greatest Overweight (x) . | . . . . . . Average Overweight (x) . | . . . . . . Largest Inventory Capacity 5 | 5 5 5 5 5 5 Average Capacity 5 | 5 5 5 5 5 5 Most Carried 5 | . . . . 1 5 Average Carried 1 | . . . . . 3 Final Capacity 5 | 5 5 5 5 5 5 Final Carried 5 | . . . . 1 5 Class Distribution -------------------- 100% | Mutant Dominant Class ---------------- Mutant | -10/Materials Mutant | -9/Materials Mutant | -8/Materials Mutant | -7/Factory Mutant | -6/Factory Resources | -11 -10 -9 -8 -7 -6 ----------- Run | Yrd Mat Mat Mat Fac Fac Matter Collected 200 | 200 . . . . . Remotely . | . . . . . . Salvage Created . | . . . . . . Parts . | . . . . . . Haulers Intercepted . | . . . . . . Recyclers Shooed . | . . . . . . Parts Field Recycled . | . . . . . . Retrieved Matter . | . . . . . . Parts Self-Destructed . | . . . . . . Prevented . | . . . . . . Kills | -11 -10 -9 -8 -7 -6 ------- Run | Yrd Mat Mat Mat Fac Fac Combat Hostiles Destroyed . | . . . . . . Classes Destroyed . | . . . . . . Best Kill Streak . | . . . . . . Combat Bots Only . | . . . . . . Max Kills in Single Turn . | . . . . . . Gunslinging . | . . . . . . Exploded . | . . . . . . Melee . | . . . . . . Uniques/NPCs Destroyed . | . . . . . . Combat | -11 -10 -9 -8 -7 -6 -------- Run | Yrd Mat Mat Mat Fac Fac Hostile Shots Fired 68 | . . 3 1 46 18 Missed 29 | . . 3 . 18 8 Damage Taken 369 | . 3 9 16 263 78 Core 368 | . 3 9 16 263 77 Absorbed by Shields . | . . . . . . Core Remaining (%) 90 | 100 98 97 97 62 . Volleys Fired . | . . . . . . Largest . | . . . . . . Hottest . | . . . . . . Shots Fired . | . . . . . . Gun . | . . . . . . Cannon . | . . . . . . Launcher . | . . . . . . Special . | . . . . . . Kinetic . | . . . . . . Thermal . | . . . . . . Explosive . | . . . . . . Electromagnetic . | . . . . . . Robot Hit Streak . | . . . . . . Robot Miss Streak . | . . . . . . Penetration Max . | . . . . . . Secondary Targets . | . . . . . . Shots Hit Robots . | . . . . . . Core Hits . | . . . . . . Critical Kills . | . . . . . . Critical Parts Destroyed . | . . . . . . Critical Strikes . | . . . . . . Melee Attacks . | . . . . . . Impact . | . . . . . . Slashing . | . . . . . . Piercing . | . . . . . . Sneak Attacks . | . . . . . . Combat Hostiles . | . . . . . . Follow-up Attacks . | . . . . . . Damage Inflicted 28 | . 6 13 . . 9 Guns . | . . . . . . Cannons . | . . . . . . Explosions . | . . . . . . Melee . | . . . . . . Ramming 28 | . 6 13 . . 9 Kinetic . | . . . . . . Thermal . | . . . . . . Explosive . | . . . . . . Electromagnetic . | . . . . . . Impact . | . . . . . . Slashing . | . . . . . . Piercing . | . . . . . . Highest Corruption . | . . . . . . Average Corruption . | . . . . . . Corruption Purged . | . . . . . . Corruption Blocked . | . . . . . . Overload Shots . | . . . . . . Overflow Damage . | . . . . . . Projectiles . | . . . . . . Explosions . | . . . . . . Melee . | . . . . . . Knockbacks . | . . . . . . Impact . | . . . . . . Kinetic . | . . . . . . Secondary . | . . . . . . Self-Inflicted Damage 12 | . 3 5 . . 4 Shots . | . . . . . . Rammed 8 | . 1 5 . . 2 Targets Rammed 8 | . 1 5 . . 2 Kicked . | . . . . . . Crushed . | . . . . . . Highest Temperature . | . . . . . . Average Temperature . | . . . . . . Received Heat Transfer 141 | . . . 9 108 24 Siege Activations . | . . . . . . Robots Corrupted . | . . . . . . Combat Hostiles . | . . . . . . Parts Fried . | . . . . . . Impact Corruptions . | . . . . . . Robots Melted . | . . . . . . Combat Hostiles . | . . . . . . Parts Melted . | . . . . . . Heat Transferred . | . . . . . . Parts Sabotaged . | . . . . . . Parts Stolen . | . . . . . . Parts Stripped . | . . . . . . Power Chain Reactions . | . . . . . . Alert | -11 -10 -9 -8 -7 -6 ------- Run | Yrd Mat Mat Mat Fac Fac Peak Influence 175 | . 45 78 171 175 144 Initial 85 | . . 18 32 77 85 Average 87 | . 28 46 79 112 104 Maximum Alert Level . | . . . . . . Low Security (%) 100 | 100 100 100 100 100 100 Level 1 . | . . . . . . Level 2 . | . . . . . . Level 3 . | . . . . . . Level 4 . | . . . . . . Level 5 . | . . . . . . High Security . | . . . . . . Max Security . | . . . . . . Squads Dispatched 2 | . . . 1 1 . Investigation . | . . . . . . Extermination . | . . . . . . Reinforcement 2 | . . . 1 1 . Assault . | . . . . . . Garrison . | . . . . . . Intercept . | . . . . . . Searches Triggered . | . . . . . . Construction Impeded . | . . . . . . Haulers Reinforced . | . . . . . . Active Scanning Responses . | . . . . . . Cargo Convoy Interrupts . | . . . . . . Stealth | -11 -10 -9 -8 -7 -6 --------- Run | Yrd Mat Mat Mat Fac Fac Distress Signals 2 | . . 1 1 . . Communications Jammed . | . . . . . . Distress Signals . | . . . . . . Times Spotted 25 | . 3 3 12 5 2 Peak Tracking Total 9 | . 3 5 9 3 2 Tactical Retreats 6 | . . 3 2 1 . Traps | -11 -10 -9 -8 -7 -6 ------- Run | Yrd Mat Mat Mat Fac Fac Traps Triggered . | . . . . . . Indirectly . | . . . . . . Trap Hack Attempts . | . . . . . . Triggered . | . . . . . . Disarmed . | . . . . . . Reprogrammed . | . . . . . . Reused . | . . . . . . Traps Extracted . | . . . . . . Installed . | . . . . . . Triggered . | . . . . . . Machines | -11 -10 -9 -8 -7 -6 ---------- Run | Yrd Mat Mat Mat Fac Fac Machines Disabled . | . . . . . . Max in Single Turn . | . . . . . . Machines Repaired . | . . . . . . Machines Dismantled . | . . . . . . Machines Sabotaged . | . . . . . . Overloaded Fab Kills . | . . . . . . Hacking | -11 -10 -9 -8 -7 -6 --------- Run | Yrd Mat Mat Mat Fac Fac Machines Accessed 6 | . . . 2 3 1 Terminals 6 | . . . 2 3 1 Fabricators . | . . . . . . Repair Stations . | . . . . . . Recycling Units . | . . . . . . Scanalyzers . | . . . . . . Garrison Access . | . . . . . . Total Hacks 15 | . . . 6 7 2 Successful 5 | . . . 2 2 1 Failed 10 | . . . 4 5 1 Catastrophic 5 | . . . 3 1 1 Database Lockouts . | . . . . . . Manual 15 | . . . 6 7 2 Terminals 15 | . . . 6 7 2 Fabricators . | . . . . . . Repair Stations . | . . . . . . Recycling Units . | . . . . . . Scanalyzers . | . . . . . . Garrison Access . | . . . . . . Terminal Hacks . | . . . . . . Fabricator Hacks . | . . . . . . Repair Station Hacks . | . . . . . . Recycling Unit Hacks . | . . . . . . Scanalyzer . | . . . . . . Garrison Access Hacks . | . . . . . . Unauthorized Hacks 5 | . . . 2 2 1 Terminals 5 | . . . 2 2 1 Assimilate 1 | . . . . 1 . Botnet 4 | . . . 2 1 1 Fabricators . | . . . . . . Repair Stations . | . . . . . . Recycling Units . | . . . . . . Scanalyzers . | . . . . . . Garrison Access . | . . . . . . Data Cores Recovered . | . . . . . . Used . | . . . . . . Hacking Detections 6 | . . . 2 3 1 Full Trace Events . | . . . . . . Feedback Events . | . . . . . . Feedback Blocked . | . . . . . . Robot Schematics Acquired . | . . . . . . Robots Built . | . . . . . . Authchips . | . . . . . . Time . | . . . . . . Total Robot Build Rating . | . . . . . . Part Schematics Acquired . | . . . . . . Parts Built . | . . . . . . Authchips . | . . . . . . Time . | . . . . . . Total Part Build Rating . | . . . . . . Parts Repaired . | . . . . . . Time . | . . . . . . Parts Recycled . | . . . . . . Recycled Matter . | . . . . . . Retrieved Matter . | . . . . . . Retrieved Components . | . . . . . . Parts Scanalyzed . | . . . . . . Part Schematics Acquired . | . . . . . . Parts Damaged . | . . . . . . Bothacking | -11 -10 -9 -8 -7 -6 ------------ Run | Yrd Mat Mat Mat Fac Fac Used RIF Installer . | . . . . . . Robots Hacked . | . . . . . . Non-combat . | . . . . . . Combat . | . . . . . . Robot Hacks Applied . | . . . . . . Relay Couplers Released . | . . . . . . Fabnet Peak Effective % . | . . . . . . Robots Rewired . | . . . . . . Allies Hacked . | . . . . . . Hacks Repelled . | . . . . . . Allies | -11 -10 -9 -8 -7 -6 -------- Run | Yrd Mat Mat Mat Fac Fac Total Allies . | . . . . . . Largest Group . | . . . . . . Highest-Rated Group . | . . . . . . Highest-Rated Ally . | . . . . . . Total Orders . | . . . . . . Ally Attacks . | . . . . . . Total Damage . | . . . . . . Kills . | . . . . . . Allies Corrupted . | . . . . . . Allies Melted . | . . . . . . Intel | -11 -10 -9 -8 -7 -6 ------- Run | Yrd Mat Mat Mat Fac Fac Robot Analysis Total . | . . . . . . Derelict Logs Recovered . | . . . . . . Drone Launches . | . . . . . . Drone Recoveries . | . . . . . . Exploration | -11 -10 -9 -8 -7 -6 ------------- Run | Yrd Mat Mat Mat Fac Fac Turns Passed 434 | 10 35 59 66 138 126 Spaces Moved 824 | 19 67 107 131 271 229 Core 824 | 19 67 107 131 271 229 Treads . | . . . . . . Legs . | . . . . . . Wheels . | . . . . . . Hover . | . . . . . . Flight . | . . . . . . Fastest Speed 50 | 50 50 50 50 50 50 Average Speed 50 | 50 50 50 50 50 50 Slowest Speed 50 | 50 50 50 50 50 50 Overloaded Moves . | . . . . . . Propulsion Burnouts . | . . . . . . Robots Hopped . | . . . . . . Cave-ins Triggered . | . . . . . . Exploration Rate (%) 16 | 4 26 20 28 10 10 Regions Visited 5 Branch Regions . Pre-discovered Areas . | . . . . . . Known Exits Taken . | . . . . . . Unknown Exits Taken 5 | 1 1 1 1 1 . Scrap Searched . | . . . . . . Spaces Dug . | . . . . . . Terrain Destroyed . | . . . . . . Melee . | . . . . . . Projectile . | . . . . . . AOE . | . . . . . . Terrain Rammed . | . . . . . . Walls Destroyed . | . . . . . . Machines Disabled . | . . . . . . Actions | -11 -10 -9 -8 -7 -6 --------- Run | Yrd Mat Mat Mat Fac Fac Total 837 | 18 67 111 130 272 239 Wait 4 | . . . . 1 3 Move 819 | 18 66 106 130 270 229 Hop . | . . . . . . Pick Up 4 | . . . . 1 3 Fast Attach 2 | . . . . . 2 Attach . | . . . . . . Detach . | . . . . . . Swap . | . . . . . . Drop . | . . . . . . Fire . | . . . . . . Melee . | . . . . . . Ram 8 | . 1 5 . . 2 Kick . | . . . . . . Crush . | . . . . . . Escape Stasis . | . . . . . . Rewire . | . . . . . . Trap . | . . . . . . Miscellaneous . | . . . . . . Route ------- -11/Scrapyard -10/Materials -9/Materials -8/Materials -7/Factory -6/Factory History --------- Turn | Location | Event 3 | -11/Scrapyard | Discovered new exit (range 16) 11 | -11/Scrapyard | Entered Materials 41 | -10/Materials | Discovered new exit (range 10) 46 | -10/Materials | Entered another Materials area 46 | -9/Materials | Evolved 2 slots: Utility x2 101 | -9/Materials | Discovered new exit (range 9) 105 | -9/Materials | Entered another Materials area 105 | -8/Materials | Evolved 2 slots: Propulsion x1, Utility x1 163 | -8/Materials | Discovered new exit (range 16) 171 | -8/Materials | Entered Factory 171 | -7/Factory | Evolved 2 slots: Propulsion x1, Utility x1 301 | -7/Factory | Discovered new exit (range 14) 305 | -7/Factory | Build established: Mutant 309 | -7/Factory | Entered another Factory area 309 | -6/Factory | Evolved 2 slots: Utility x2 435 | -6/Factory | Self-destructed Last Messages --------------- EXIT=FOUND PARAMETERS=UTILITY+2 LOCATION=UNKNOWN GOAL=ESCAPE Acquired Adv. ECM Suite. K-01 Serf collects debris. Acquired Greatsword. K-01 Serf cleans the Terminal. Acquired Adv. Signal Interpreter. Connecting with Terminal... Current location identified: Factory >>Trojan(Botnet) Trojan loaded successfully. Testing... Terminal linked with 0 systems. Awaiting botnet instructions. K-01 Serf cleans the Power Conduit. ALERT: All DSF locations entering lockdown mode. ALERT: Security rotation in progress. Slammed into Y-54 Guardian. Map ----- +----------------------------------------------------+ | ?????????????????????????# #???##############? | | ?????????????????????????# #???#! * ####+# | | ?????????????????????????# #???# / | | ?????????????????????????# #???#[ " " " " " ###### | | ?????????################# ##### " " " " " #????? | | ????????? # " " " " " ###### | | ?????????? # " " " " " # | | ??????????? / " " " " " #??"" | | ??????????? # " " " " " #??"" | | ?????????????? # " " " " " #??"" | | ????##+########### #] " " " " " #??"" | | ????# # # " " " " " #? "" | | ????#= + + #?? | | ?????? " " " " " ####### ##+##+##############?##?# | | ???????? " " " " #?????# ## ??????????????#### | | ???????? " " " " #????## ## """ ?????????????? | | ???????? " " " " ###### # """ "???????????? | | ???????? " " " " + # """ "????????????" | | ?????????" " " " ###### # ???????????" | | ?????????" " " " #######+## ???????????? | | ?????????" " " " ## Y#[ "Y"?????????####+# | | ?????????? " " " ## " " " # ""???????+ | | ?????????? ## " " " ####?###?????????????# | | ?????????########## " " " #????????????????????# | | ??????????????????# " " " #????????????????????# | | ??????????????????# " " "@#????????????????????# | | ??????????????????# " " " #????????????????????# | | ??????????????????# " " " #????????????????????# | | ??????????????????# " " " #????????????????????# | | ??????????????????# " " " #????????????????????# | | ??????????????????# #????????????????????# # | | ??????????????????#########??????????????????###+# | | ?????????????????????????????????????????????# | | ?????????????????????????????????????????????# | | ?????????????????????????????????????????????# | | ?????????????????????????????????????????????# | | ?????????????????????????????????????????????# | | ?????????????????????????????????????????????# " | | ?????????????????????????????????????????????# ""G | | ?????????????????????????????????????????????? | | ?????????????????????????????????????????????##### | | ?????????????????????????????????????????????????? | | ?????????????????????????????????????????????????? | | ?????????????????????????????????????????????????? | | ?????????????????????????????????????????????????? | | ?????????????????????????????????????????????????? | | ?????????????????????????????????????????????????? | | ?????????????????????????????????????????????????? | | ?????????????????????????????????????????????????? | | ?????????????????????????????????????????????????? | +----------------------------------------------------+ Best States ------------- Heat Dissipation 37 Energy Generation 5 Energy Capacity 100 Matter Stores 300 Matter Capacity 300 Sight Range 16 Terrain Scan Density 10 Evasion (%) 50 Item Schematics ----------------- None Robot Schematics ------------------ None Fabricated ------------ Nothing Alien Tech Used ----------------- None Achievements -------------- None Challenges ------------ None Game ------ Seed FlyingAssaultSaw Manual? 0 Play Time 00:07:37 Cumulative 195.3 hours Start 2024.08.11 @ 23:41:27 End 2024.08.11 @ 23:48:56 Sessions 1 Manual Loads 0 Difficulty Rogue Special Mode None Game No. 346 Rogue 344 Adventurer 2 Explorer 0 Win Type - Total 9 Types 8/0/0/1/0/0/0/0/0 Lore% 69 Gallery% 64 Achievement% 55 Wizard Run 0 Options --------- Layout 0 ASCII 0 Keyboard 1 Movement Numpad Keybinds 1 Fullscreen 2 Font 18/SmallcapsGlow Map View 76x50 Zoom Use 0% Tactical HUD 1 Map Filters NONE Filters NONE Steam 1 RUN: cbccf9c7-9d13-43e3-b3bd-3ee85f65e0ce